bitfinex-derivatives/quotes_SOLF0:USTF0_20260202
["timestamp","ask_amount","ask_price","bid_price","bid_amount"]
[1770074157054,2.53627246,104.84,104.8,8.5959]
[1770074157255,2.91271751,104.82,104.79,3.58060887]
[1770074158448,2.91271751,104.83,104.79,3.58060887]
[1770074159453,2.91271751,104.83,104.8,8.5958]
[1770074160962,2.91271751,104.86,104.82,3.58060887]
[1770074161156,5.44224002,104.86,104.82,3.58060887]
[1770074161356,2.91271751,104.85,104.82,3.58060887]
[1770074161556,5.44224002,104.86,104.82,3.58060887]
[1770074162158,2.52952251,104.86,104.82,12.17470887]
[1770074162459,5.40686059,104.87,104.82,12.17470887]
[1770074163250,2.91271751,104.88,104.83,3.58060887]
[1770074164554,2.91271751,104.88,104.84,8.5926]
[1770074165463,13.96618591,104.9,104.85,12.17210887]
[1770074166060,13.96618591,104.9,104.86,3.58060887]
[1770074166061,2.4655684,104.9,104.86,3.58060887]
[1770074167965,5.35623615,104.89,104.84,12.17320887]
[1770074168168,2.91271751,104.88,104.84,12.17320887]
[1770074168460,5.35623615,104.89,104.84,12.17320887]
[1770074169461,13.94473615,104.89,104.84,12.17320887]
[1770074171363,11.03201864,104.89,104.84,12.17320887]
[1770074171664,13.94473615,104.89,104.84,12.17320887]
[1770074175262,5.35623615,104.89,104.85,3.58060887]
[1770074176763,5.35623615,104.89,104.85,12.17230887]
[1770074178162,5.35623615,104.89,104.85,3.58060887]
[1770074178163,2.91271751,104.88,104.85,3.58060887]
[1770074178857,2.91271751,104.87,104.83,12.17390887]
[1770074179062,2.46376876,104.88,104.83,3.58060887]
[1770074179063,2.91271751,104.86,104.83,3.58060887]
[1770074179567,2.91271751,104.87,104.83,3.58060887]
[1770074181070,2.91271751,104.87,104.83,12.17380887]
[1770074181270,5.37648627,104.88,104.83,12.17380887]
[1770074181470,5.37648627,104.88,104.84,8.5924]
[1770074182873,2.91271751,104.88,104.84,12.21264122]
[1770074183068,2.91271751,104.89,104.84,12.21264122]
[1770074183769,2.91271751,104.88,104.84,12.21264122]
[1770074183969,5.29520883,104.88,104.84,8.5924]
[1770074186473,2.91271751,104.87,104.83,12.21364122]
[1770074186675,2.91271751,104.86,104.81,3.62024122]
[1770074187872,2.91271751,104.84,104.81,12.21524122]
[1770074189668,2.91271751,104.84,104.81,3.62024122]
[1770074196075,2.91271751,104.85,104.82,3.62024122]
[1770074196271,11.50371751,104.86,104.82,3.62024122]
[1770074197571,13.9379946,104.86,104.82,3.62024122]
[1770074197877,2.91271751,104.84,104.8,12.21604122]
[1770074198570,2.91271751,104.82,104.79,8.5966]
[1770074198771,2.91271751,104.82,104.79,12.21684122]
[1770074199382,2.91271751,104.82,104.79,3.62024122]
[1770074200176,2.30874722,104.83,104.79,3.62024122]
[1770074200378,2.91271751,104.81,104.79,3.62024122]
[1770074201881,2.91271751,104.81,104.78,8.5975]
[1770074202782,2.91271751,104.81,104.78,12.21774122]
[1770074203085,2.91271751,104.82,104.78,12.21774122]
[1770074203486,2.91271751,104.83,104.79,3.62024122]
[1770074204177,547.2396,104.86,104.8,3.62024122]
[1770074204178,2.91271751,104.85,104.8,3.62024122]
[1770074204378,2.91339469,104.85,104.8,3.62024122]
[1770074204778,2.91339469,104.85,104.81,3.62024122]
[1770074211194,2.91339469,104.86,104.82,3.56490197]
[1770074211393,13.71407107,104.87,104.82,3.56490197]
[1770074212291,13.71407107,104.87,104.82,12.15910197]
[1770074214688,5.1208282,104.83,104.77,3.56490197]
[1770074214893,2.91339469,104.81,104.77,3.56490197]
[1770074215089,2.91339469,104.81,104.77,12.16320197]
[1770074215390,2.91339469,104.81,104.77,3.56490197]
[1770074215789,2.91339469,104.8,104.77,3.56490197]
[1770074217386,2.91339469,104.8,104.76,3.56490197]
[1770074220397,2.91339469,104.78,104.74,3.56490197]
[1770074221896,2.91339469,104.77,104.74,3.56490197]
[1770074222098,2.91339469,104.77,104.72,3.56490197]
[1770074222489,2.91339469,104.75,104.7,3.56490197]
[1770074222689,2.91339469,104.74,104.7,3.56490197]
[1770074223798,2.91339469,104.75,104.7,3.56490197]
[1770074223998,2.91339469,104.74,104.7,3.56490197]
[1770074224895,133.7174,104.8,104.71,3.56490197]
[1770074225195,2.91339469,104.76,104.71,3.56490197]
[1770074225591,2.91339469,104.75,104.71,3.56490197]
[1770074226292,2.91339469,104.76,104.71,3.56490197]
[1770074226600,2.91339469,104.76,104.71,12.16810197]
[1770074227704,2.91339469,104.78,104.73,3.56490197]
[1770074229603,14.01174988,104.79,104.73,3.56490197]
[1770074232498,14.01174988,104.79,104.73,12.16650197]
[1770074233200,11.02034452,104.81,104.75,3.56490197]
[1770074233400,11.02034452,104.81,104.75,6.47829666]
[1770074233401,2.42454452,104.81,104.75,6.47829666]
[1770074234509,2.42454452,104.81,104.76,12.16400197]
[1770074237202,2.4194703,104.8,104.74,6.47829666]
[1770074237408,5.33286499,104.8,104.74,3.56490197]
[1770074237708,13.92796499,104.81,104.75,3.56490197]
[1770074238011,5.33286499,104.81,104.76,12.16380197]
[1770074238605,2.91339469,104.8,104.76,12.16380197]
[1770074238807,5.33232338,104.8,104.76,8.5989]
[1770074239203,391.85322869,104.82,104.77,3.56490197]
[1770074239507,2.91339469,104.81,104.77,3.56490197]
[1770074239807,2.91339469,104.8,104.77,3.56490197]
[1770074242707,2.91339469,104.81,104.77,3.56490197]
[1770074243811,13.92375181,104.83,104.78,3.55214142]
[1770074244407,33.0,104.84,104.73,137.35394142]
[1770074244609,2.91339469,104.77,104.73,3.55214142]
[1770074245911,2.91339469,104.76,104.71,15.45690731]
[1770074246109,2.91339469,104.75,104.71,15.45690731]
[1770074247814,2.91339469,104.76,104.71,15.45690731]
[1770074248715,2.91339469,104.72,104.67,6.80124897]
[1770074248916,2.91339469,104.71,104.67,6.80124897]
[1770074249411,133.7675,104.76,104.67,6.80124897]
[1770074249412,2.91339469,104.72,104.67,6.80124897]
[1770074250710,133.8173,104.72,104.64,6.76454095]
[1770074250915,2.91339469,104.68,104.64,6.76454095]
[1770074252617,2.91339469,104.67,104.64,6.76454095]
[1770074253917,8.6044,104.7,104.64,6.76454095]
[1770074253918,2.91339469,104.68,104.64,6.76454095]
[1770074258419,2.91339469,104.67,104.64,6.76454095]
[1770074259223,8.6033,104.72,104.65,6.76260788]
[1770074259423,2.91339469,104.7,104.65,6.76260788]
[1770074259620,2.91339469,104.69,104.65,6.76260788]
[1770074260320,2.91339469,104.68,104.65,6.76260788]
[1770074264314,414.14,104.72,104.65,6.76260788]
[1770074264517,2.91339469,104.69,104.65,6.76260788]
[1770074265320,2.91339469,104.69,104.65,15.37080788]
[1770074266516,2.9221686,104.69,104.65,15.37080788]
[1770074272930,2.9221686,104.69,104.65,6.76260788]
[1770074276727,2.9221686,104.69,104.66,6.80582675]
[1770074276930,2.9221686,104.7,104.66,6.80582675]
[1770074277633,2.9221686,104.71,104.67,6.80582675]
[1770074278527,2.9221686,104.7,104.67,6.80582675]
[1770074279534,2.9221686,104.69,104.66,8.6074]
[1770074280034,2.9221686,104.69,104.66,15.42180886]
[1770074280936,2.9221686,104.71,104.67,6.81683379]
[1770074283239,2.9221686,104.7,104.66,15.42369814]
[1770074283838,2.9221686,104.7,104.67,6.81629814]
[1770074290842,11.5255686,104.71,104.67,6.81629814]
[1770074292848,2.9221686,104.7,104.67,6.81629814]
[1770074297043,11.5255686,104.71,104.67,6.81629814]
[1770074297244,2.9221686,104.71,104.67,15.42259814]
[1770074300257,11.5255686,104.71,104.67,15.42259814]
[1770074303356,2.9221686,104.69,104.65,6.53499358]
[1770074304359,2.9221686,104.69,104.66,6.53749829]
[1770074305361,11.5263686,104.7,104.66,6.53749829]
[1770074318765,381.16,104.73,104.67,6.53092037]
[1770074318965,2.9221686,104.72,104.67,6.53092037]
[1770074319468,384.0821686,104.73,104.67,6.53092037]
[1770074320267,8.6026,104.72,104.67,15.13732037]
[1770074320971,8.6026,104.72,104.68,6.5599921]
[1770074321170,2.9221686,104.72,104.68,6.5599921]
[1770074326278,2.9221686,104.7,104.67,8.6064]
[1770074326478,2.9221686,104.7,104.67,15.15576364]
[1770074326977,2.9221686,104.71,104.67,15.15576364]
[1770074327878,11.5249686,104.72,104.68,6.54936364]
[1770074328578,11.52357584,104.72,104.68,6.54936364]
[1770074328979,2.92077584,104.72,104.68,15.15506364]
[1770074334480,2.92077584,104.72,104.7,6.45597866]
[1770074334676,2.92077584,104.74,104.7,6.45597866]
[1770074336484,2.92077584,104.74,104.7,15.05947866]
[1770074338987,2.92077584,104.77,104.72,6.36998876]
[1770074339180,2.92077584,104.79,104.73,4.89566015]
[1770074340290,2.92077584,104.79,104.75,8.5999]
[1770074340580,2.92077584,104.78,104.74,4.91031405]
[1770074342277,2.92077584,104.78,104.74,13.51101405]
[1770074342487,3.21852012,104.78,104.74,4.91031405]
[1770074342687,2.92077584,104.78,104.74,4.91031405]
[1770074343784,3.21852012,104.79,104.74,4.91031405]
[1770074344283,0.68769576,104.78,104.74,13.51111405]
[1770074344583,3.6084716,104.78,104.72,4.88074407]
[1770074345382,3.6084716,104.78,104.73,13.47002447]
[1770074345884,2.92077584,104.77,104.73,13.47002447]
[1770074348090,2.92077584,104.76,104.73,13.47002447]
[1770074354087,5.26767584,104.75,104.71,13.42054903]
[1770074354385,2.92077584,104.74,104.71,13.42054903]
[1770074354691,5.26767584,104.75,104.71,13.42054903]
[1770074359699,2.92077584,104.75,104.71,13.42054903]
[1770074360897,384.50442537,104.78,104.73,6.15343513]
[1770074361101,2.92077584,104.77,104.73,6.15343513]
[1770074362004,396.02320121,104.78,104.73,14.75483513]
[1770074362503,15.06320121,104.78,104.73,14.75483513]
[1770074363702,2.92077584,104.77,104.73,14.75483513]
[1770074364696,2.92077584,104.78,104.74,14.75403513]
[1770074364903,11.51767584,104.79,104.75,6.15343513]
[1770074365806,15.73919148,104.79,104.75,6.15343513]
[1770074366406,2.92077584,104.78,104.75,6.15343513]
[1770074367206,2.92077584,104.76,104.72,8.6023]
[1770074367516,2.92077584,104.76,104.72,14.75573513]
[1770074369500,2.92077584,104.76,104.72,6.15343513]
[1770074370913,2.92077584,104.75,104.72,6.15343513]
[1770074371313,11.52007584,104.76,104.72,6.15343513]
[1770074372208,2.92077584,104.74,104.7,8.6039]
[1770074372413,2.92077584,104.74,104.7,14.75733513]
[1770074381116,2.92077584,104.75,104.72,6.15343513]
[1770074381312,2.92077584,104.76,104.72,6.15343513]
[1770074383516,2.92077584,104.76,104.73,6.15343513]
[1770074383712,298.46077584,104.77,104.73,6.15343513]
[1770074383914,295.54,104.77,104.73,6.15343513]
[1770074385328,295.54,104.77,104.73,14.75503513]
[1770074385721,295.54,104.77,104.74,6.15343513]
[1770074386423,11.51847584,104.78,104.74,6.15343513]
[1770074386725,17.75518981,104.78,104.74,6.15343513]
[1770074388417,2.9176955,104.77,104.74,6.15343513]
[1770074390822,10.69996092,104.75,104.7,7.54139788]
[1770074391023,2.9176955,104.74,104.7,7.54139788]
[1770074391520,2.9176955,104.75,104.7,7.54139788]
[1770074391726,2.9176955,104.76,104.7,7.54139788]
[1770074392025,2.9176955,104.75,104.71,16.14459788]
[1770074392627,11.5169955,104.76,104.71,16.14459788]
[1770074392830,11.5169955,104.76,104.71,7.54139788]
[1770074393726,19.41909957,104.76,104.71,7.54139788]
[1770074395926,2.9176955,104.75,104.71,7.54139788]
[1770074400439,2.9176955,104.74,104.71,7.54139788]
[1770074400934,2.9176955,104.72,104.69,7.54139788]
[1770074401538,2.9176955,104.71,104.67,7.54139788]
[1770074401837,2.9176955,104.69,104.64,7.54139788]
[1770074403436,2.9176955,104.69,104.65,16.14949788]
[1770074406640,2.9176955,104.72,104.66,7.54139788]
[1770074407941,2.9176955,104.71,104.66,7.54139788]
[1770074408340,2.9176955,104.71,104.67,16.14789788]
[1770074408637,2.9176955,104.72,104.67,16.14789788]
[1770074408837,2.9176955,104.71,104.67,16.14789788]
[1770074415651,2.9176955,104.71,104.68,7.54139788]
[1770074419559,2.9176955,104.72,104.68,7.54139788]
[1770074419753,388.94210407,104.73,104.68,7.54139788]
[1770074419959,391.85979957,104.73,104.68,7.54139788]
[1770074421560,2.9176955,104.71,104.68,7.54139788]
[1770074422860,2.9176955,104.69,104.66,17.08696041]
[1770074423056,2.9176955,104.68,104.64,8.47976041]
[1770074425358,2.9176955,104.68,104.64,17.08846041]
[1770074426762,2.9176955,104.68,104.64,8.47976041]
[1770074426969,2.9176955,104.67,104.64,8.47976041]
[1770074427864,11.5234955,104.68,104.64,8.47976041]
[1770074428067,2.9176955,104.68,104.64,8.47976041]
[1770074430670,2.9176955,104.68,104.64,17.08866041]
[1770074430869,2.9176955,104.68,104.65,8.47976041]
[1770074431070,11.67000117,104.69,104.65,8.47976041]
[1770074431466,2.9176955,104.68,104.65,8.47976041]
[1770074431970,2.9176955,104.68,104.65,17.08776041]
[1770074432270,2.9176955,104.68,104.66,8.47976041]
[1770074432469,2.9176955,104.68,104.65,17.08776041]
[1770074435571,2.9176955,104.68,104.65,8.47976041]
[1770074436568,2.9176955,104.67,104.63,8.47976041]
[1770074436873,2.9176955,104.69,104.63,8.47976041]
[1770074437074,2.9176955,104.68,104.63,8.47976041]
[1770074438370,2.9176955,104.68,104.64,8.47976041]
[1770074440174,2.9176955,104.68,104.65,8.47976041]
[1770074441272,2.9176955,104.68,104.65,17.08786041]
[1770074441773,2.9176955,104.69,104.65,17.08786041]
[1770074442274,2.9176955,104.68,104.65,17.08786041]
[1770074444766,2.9176955,104.69,104.65,17.08786041]
[1770074445874,2.9176955,104.68,104.65,8.47976041]
[1770074446273,20.27520117,104.69,104.65,8.47976041]
[1770074448276,2.9176955,104.69,104.65,8.47976041]
[1770074448472,2.92233254,104.69,104.65,8.47976041]
[1770074450678,2.92233254,104.68,104.65,8.47976041]
[1770074452374,2.92233254,104.67,104.63,18.08387031]
[1770074452878,2.92233254,104.67,104.64,9.47407031]
[1770074453078,20.68529602,104.68,104.64,9.47407031]
[1770074456079,2.92233254,104.69,104.65,9.47407031]
[1770074457079,2.92233254,104.69,104.65,18.08217031]
[1770074459380,2.92233254,104.69,104.65,9.47407031]
[1770074459680,2.92233254,104.68,104.65,9.47407031]
[1770074460383,2.92233254,104.67,104.63,18.08377031]
[1770074460575,2.92233254,104.66,104.63,9.47407031]
[1770074465387,12.07949602,104.67,104.63,9.47407031]
[1770074465572,2.92233254,104.66,104.63,9.47407031]
[1770074466083,2.92233254,104.65,104.61,9.47407031]
[1770074466385,2.92233254,104.64,104.59,18.08707031]
[1770074466581,2.92233254,104.62,104.59,9.47407031]
[1770074470884,11.53333254,104.62,104.59,9.47407031]
[1770074471084,2.92233254,104.62,104.59,9.47407031]
[1770074472086,9.15716348,104.63,104.56,9.47407031]
[1770074472087,2.92233254,104.61,104.56,9.47407031]
[1770074472286,2.92233254,104.59,104.56,9.47407031]
[1770074472485,2.92233254,104.6,104.56,9.47407031]
[1770074473182,2.92233254,104.61,104.57,9.47407031]
[1770074474286,2.92233254,104.61,104.58,9.47407031]
[1770074476585,2.92233254,104.63,104.59,9.47407031]
[1770074477686,2.92233254,104.62,104.57,18.08887031]
[1770074477882,9.15716348,104.63,104.57,18.08887031]
[1770074477883,2.92233254,104.61,104.57,18.08887031]
[1770074478183,2.92233254,104.61,104.57,9.47407031]
[1770074478882,2.92233254,104.6,104.57,9.47407031]
[1770074480882,2.92233254,104.63,104.58,10.31270861]
[1770074481992,21.69783269,104.64,104.58,10.31270861]
[1770074482289,21.69783269,104.64,104.58,18.92650861]
[1770074482485,21.69783269,104.64,104.59,10.31270861]
[1770074483088,2.92233254,104.63,104.59,10.31270861]
[1770074483386,21.69783269,104.64,104.59,10.31270861]
[1770074487691,2.92233254,104.63,104.59,10.31270861]
[1770074489692,13.08803269,104.63,104.59,10.31270861]
[1770074490489,2.92233254,104.62,104.55,136.95483254]
[1770074490690,2.92233254,104.62,104.56,10.31270861]
[1770074491489,2.92233254,104.62,104.58,18.92660861]
[1770074491694,11.53153254,104.64,104.59,10.31270861]
[1770074491994,21.69723269,104.64,104.59,10.31270861]
[1770074493594,2.92233254,104.63,104.59,10.31270861]
[1770074495294,11.53233254,104.63,104.59,10.31270861]
[1770074495596,2.92233254,104.6,104.56,18.92820861]
[1770074495786,2.92233254,104.6,104.57,10.31270861]
[1770074497896,10.16570015,104.59,104.54,8.6167]
[1770074498197,2.92233254,104.59,104.55,10.31270861]
[1770074500797,2.92233254,104.6,104.56,10.31270861]
[1770074503202,2.92233254,104.59,104.56,10.31270861]
[1770074504204,8.6116,104.61,104.56,10.31270861]
[1770074504497,2.92233254,104.59,104.56,10.31270861]
[1770074504699,2.92233254,104.6,104.56,10.31270861]
[1770074504900,2.92233254,104.6,104.57,10.31270861]
[1770074506599,2.92233254,104.61,104.57,10.31270861]
[1770074510513,2.92685056,104.61,104.57,10.31270861]
[1770074511215,12.77580776,104.61,104.56,8.6155]
[1770074511516,2.92685056,104.57,104.53,9.86902364]
[1770074512317,2.92685056,104.58,104.54,9.86902364]
[1770074512518,2.92685056,104.59,104.54,9.86902364]
[1770074514313,2.92685056,104.58,104.54,9.86902364]
[1770074518122,9.8489572,104.59,104.55,9.86902364]
[1770074518419,2.92685056,104.59,104.55,9.86902364]
[1770074520320,11.54005056,104.59,104.55,9.86902364]
[1770074520822,9.8489572,104.6,104.55,9.86902364]
[1770074521119,21.38820776,104.6,104.55,9.86902364]
[1770074521321,2.92685056,104.61,104.56,9.86902364]
[1770074522310,11.53845056,104.61,104.57,9.86902364]
[1770074524719,8.6107,104.62,104.58,9.86902364]
[1770074526724,2.92685056,104.61,104.57,8.6148]
[1770074526921,21.38770776,104.61,104.56,18.48442364]
[1770074527118,21.38770776,104.61,104.57,9.86902364]
[1770074528822,21.38770776,104.61,104.56,8.6154]
[1770074529029,2.92685056,104.6,104.56,8.6154]
[1770074529225,2.92685056,104.6,104.56,18.48442364]
[1770074530030,12.77580776,104.59,104.55,8.6164]
[1770074530224,12.77580776,104.59,104.54,9.86902364]
[1770074531027,2.92685056,104.58,104.54,18.48612364]
[1770074532026,2.92685056,104.55,104.49,9.86902364]
[1770074532227,2.92685056,104.55,104.5,9.86902364]
[1770074532526,12.77580776,104.56,104.5,9.86902364]
[1770074533031,2.92685056,104.57,104.52,9.86902364]
[1770074535434,2.92685056,104.56,104.52,9.86902364]
[1770074536536,2.92685056,104.57,104.52,9.86902364]
[1770074537630,11.54175056,104.57,104.52,9.86902364]
[1770074537836,2.92685056,104.56,104.52,9.86902364]
[1770074538235,11.54255056,104.56,104.52,9.86902364]
[1770074538934,2.92685056,104.58,104.53,9.86902364]
[1770074539435,2.92685056,104.57,104.53,9.86902364]
[1770074539631,2.92685056,104.55,104.51,9.86902364]
[1770074540135,21.39160776,104.56,104.51,9.86902364]
[1770074540734,11.54265056,104.56,104.51,9.86902364]
[1770074541434,2.92685056,104.56,104.52,10.54524002]
[1770074544140,21.74769483,104.57,104.53,10.54524002]
[1770074545540,2.92685056,104.56,104.53,10.54524002]
[1770074549937,2.92685056,104.55,104.51,19.16454002]
[1770074552746,2.92685056,104.54,104.51,10.54524002]
[1770074555247,2.92685056,104.54,104.5,8.6204]
[1770074555248,2.92685056,104.53,104.49,19.16654002]
[1770074555547,2.92685056,104.53,104.5,10.54524002]
[1770074556142,2.92685056,104.52,104.48,19.16734002]
[1770074556348,11.54495056,104.53,104.49,10.54524002]
[1770074556947,13.13279483,104.52,104.47,19.16814002]
[1770074557848,13.13279483,104.52,104.48,10.54524002]
[1770074559046,13.13279483,104.52,104.48,19.16744002]
[1770074559241,2.92685056,104.53,104.49,10.54524002]
[1770074559647,2.92685056,104.53,104.49,19.16664002]
[1770074560753,2.92685056,104.54,104.5,19.16574002]
[1770074561947,2.92685056,104.55,104.51,10.54524002]
[1770074565454,2.92685056,104.54,104.51,10.54524002]
[1770074565655,2.92685056,104.53,104.51,10.54524002]
[1770074566857,2.92685056,104.54,104.51,10.54524002]
[1770074570463,2.93063361,104.54,104.51,10.54524002]
[1770074570863,11.54813361,104.54,104.51,10.54524002]
[1770074571761,2.93063361,104.53,104.49,10.95918096]
[1770074572455,2.93063361,104.52,104.49,10.95918096]
[1770074574363,2.93063361,104.51,104.47,10.95918096]
[1770074576471,2.93063361,104.51,104.47,19.58218096]
[1770074577865,19.21157929,104.53,104.48,19.58138096]
[1770074578070,22.1422129,104.53,104.49,10.95918096]
[1770074581475,2.93063361,104.52,104.49,10.95918096]
[1770074583874,2.93063361,104.53,104.5,10.95918096]
[1770074586973,11.54813361,104.54,104.5,10.95918096]
[1770074588376,2.93063361,104.54,104.51,10.95918096]
[1770074600291,22.1407129,104.55,104.51,10.95918096]
[1770074601590,2.93063361,104.53,104.49,19.13769152]
[1770074601790,18.81143566,104.54,104.49,19.13769152]
[1770074601989,2.93063361,104.53,104.5,10.51649152]
[1770074603288,2.93063361,104.54,104.5,10.51649152]
[1770074603489,2.93063361,104.53,104.5,10.51649152]
[1770074607802,2.93063361,104.53,104.5,19.13689152]
[1770074608697,2.93063361,104.54,104.51,10.51649152]
[1770074610499,393.32643361,104.56,104.51,19.13599152]
[1770074610699,393.32643361,104.56,104.52,10.51649152]
[1770074611203,11.54643361,104.56,104.52,10.51649152]
[1770074612703,2.93063361,104.55,104.52,10.51649152]
[1770074613301,2.93063361,104.56,104.52,10.51649152]
[1770074613506,13.12476927,104.59,104.53,10.51649152]
[1770074614206,2.93063361,104.58,104.53,10.51649152]
[1770074615300,2.93063361,104.58,104.54,19.13369152]
[1770074615805,2.93063361,104.57,104.54,10.51649152]
[1770074617395,2.93063361,104.56,104.53,8.6181]
[1770074617799,2.93063361,104.56,104.53,19.13459152]
[1770074618002,2.93063361,104.56,104.53,10.51649152]
[1770074621107,2.93063361,104.54,104.51,19.13609152]
[1770074624108,2.93063361,104.54,104.51,10.51649152]
[1770074630714,18.80993566,104.56,104.52,10.34751856]
[1770074630715,2.93063361,104.55,104.52,10.34751856]
[1770074632406,2.93017738,104.55,104.52,10.34751856]
[1770074635119,2.93017738,104.54,104.5,18.96791856]
[1770074635320,2.93017738,104.54,104.5,10.34751856]
[1770074636222,2.93017738,104.55,104.51,10.34751856]
[1770074638324,22.06529856,104.55,104.51,10.34751856]
[1770074638529,2.93017738,104.54,104.51,10.34751856]
[1770074643732,11.54587738,104.56,104.52,10.34751856]
[1770074643937,2.93017738,104.56,104.52,10.34751856]
[1770074644326,11.54507738,104.57,104.53,10.34751856]
[1770074646829,2.93017738,104.56,104.53,10.34751856]
[1770074647028,11.54507738,104.57,104.53,10.34751856]
[1770074648631,2.93017738,104.55,104.51,18.96711856]
[1770074649127,19.13422118,104.56,104.51,10.34751856]
[1770074649128,2.93017738,104.54,104.51,10.34751856]
[1770074653540,11.54667738,104.55,104.51,10.34751856]
[1770074658740,2.93017738,104.55,104.51,18.96711856]
[1770074658939,13.44869856,104.55,104.51,18.96711856]
[1770074665343,11.54587738,104.56,104.52,10.26940704]
[1770074666449,395.58874589,104.57,104.52,18.88820704]
[1770074667139,384.65017738,104.57,104.53,10.26940704]
[1770074667445,381.72,104.57,104.53,18.88740704]
[1770074667644,384.65017738,104.57,104.53,18.88740704]
[1770074668242,384.65017738,104.57,104.54,10.26940704]
[1770074671052,381.72,104.57,104.54,10.26940704]
[1770074671753,11.54487738,104.58,104.54,10.26940704]
[1770074672846,392.63856851,104.6,104.55,10.26940704]
[1770074673048,2.93017738,104.58,104.55,10.26940704]
[1770074675347,2.93017738,104.56,104.53,18.88730704]
[1770074675858,2.93017738,104.56,104.53,10.26940704]
[1770074678157,2.93017738,104.56,104.51,10.26940704]
[1770074678158,13.86874589,104.55,104.51,10.26940704]
[1770074678451,13.86874589,104.54,104.49,10.26940704]
[1770074678656,2.93017738,104.53,104.49,10.26940704]
[1770074678858,2.93017738,104.52,104.49,10.26940704]
[1770074681455,2.93017738,104.52,104.45,399.84527738]
[1770074681655,2.93017738,104.51,104.48,10.26940704]
[1770074682757,2.93017738,104.52,104.49,10.26940704]
[1770074688959,10.93856851,104.53,104.49,10.26940704]
[1770074689167,13.86874589,104.53,104.49,10.26940704]
[1770074689965,2.93017738,104.53,104.49,18.89060704]
[1770074690357,13.32272787,104.55,104.5,10.93213857]
[1770074691466,13.32272787,104.55,104.51,10.93213857]
[1770074694466,2.93017599,104.55,104.52,10.93213857]
[1770074694663,2.93017599,104.56,104.52,10.93213857]
[1770074695058,13.32272648,104.56,104.52,10.93213857]
[1770074695261,2.93017599,104.55,104.52,10.93213857]
[1770074695467,2.93017599,104.55,104.5,19.55263857]
[1770074695667,2.93017599,104.55,104.51,10.93213857]
[1770074696264,2.93017599,104.55,104.51,19.55183857]
[1770074699470,10.39255049,104.56,104.52,10.93213857]
[1770074699766,13.32272648,104.56,104.52,10.93213857]
[1770074700368,2.93017599,104.55,104.52,10.93213857]
[1770074701164,2.93017599,104.55,104.51,8.6197]
[1770074701370,2.93017599,104.55,104.51,19.55183857]
[1770074702873,2.93017599,104.54,104.51,19.55183857]
[1770074703172,13.32272648,104.54,104.5,8.6204]
[1770074703373,2.93017599,104.53,104.5,8.6204]
[1770074703675,2.93017599,104.53,104.5,19.55253857]
[1770074706074,13.32272648,104.54,104.5,19.55253857]
[1770074706276,2.93017599,104.53,104.5,10.93213857]
[1770074709580,13.32272648,104.54,104.5,10.93213857]
[1770074709776,13.32272648,104.56,104.51,10.93213857]
[1770074709983,2.93017599,104.56,104.51,10.93213857]
[1770074711274,2.93017599,104.56,104.52,10.93213857]
[1770074714987,19.00805049,104.57,104.52,10.93213857]
[1770074714988,21.93822648,104.57,104.52,19.55103857]
[1770074715386,2.93017599,104.56,104.52,19.55103857]
[1770074717392,2.93017599,104.56,104.52,10.93213857]
[1770074717596,13.32272648,104.54,104.5,19.55193857]
[1770074719089,13.32272648,104.54,104.5,10.93213857]
[1770074719390,2.93017599,104.51,104.48,10.93213857]
[1770074726002,2.93017599,104.5,104.46,10.72189645]
[1770074727804,23.07067028,104.51,104.46,10.72189645]
[1770074728697,14.45097028,104.51,104.46,10.72189645]
[1770074729989,14.45097028,104.51,104.46,19.34539645]
[1770074731305,14.45097028,104.51,104.47,10.72189645]
[1770074731492,2.93017599,104.5,104.47,10.72189645]
[1770074732200,14.45097028,104.51,104.47,10.72189645]
[1770074734098,2.93017599,104.5,104.47,10.72189645]
[1770074736092,14.45097028,104.5,104.46,19.34539645]
[1770074736697,14.45097028,104.5,104.46,10.72189645]
[1770074737096,2.93017599,104.48,104.44,10.72189645]
[1770074737297,2.93017599,104.48,104.43,19.34809645]
[1770074737298,2.93017599,104.47,104.43,19.34809645]
[1770074737704,2.93017599,104.47,104.44,10.72189645]
[1770074739004,2.93017599,104.46,104.42,10.72189645]
[1770074740299,2.93017599,104.45,104.42,10.72189645]
[1770074745310,11.55487599,104.45,104.41,10.72189645]
[1770074745717,2.93017599,104.44,104.41,10.72189645]
[1770074746018,14.45097028,104.44,104.39,10.72189645]
[1770074746907,14.45097028,104.44,104.4,10.72189645]
[1770074749316,2.93017599,104.44,104.4,19.35059645]
[1770074749717,2.93017599,104.46,104.42,10.72189645]
[1770074750013,396.39097028,104.47,104.42,10.72189645]
[1770074750212,2.93017599,104.46,104.42,10.72189645]
[1770074751317,402.08459429,104.47,104.42,10.72189645]
[1770074751513,22.94105171,104.48,104.42,10.72189645]
[1770074751712,14.31875171,104.48,104.42,10.72189645]
[1770074751912,2.93017599,104.47,104.42,10.72189645]
[1770074752814,11.55327599,104.47,104.42,19.34889645]
[1770074753217,11.55327599,104.47,104.42,10.72189645]
[1770074753419,2.93017599,104.46,104.42,10.72189645]
[1770074753917,11.55327599,104.47,104.42,10.72189645]
[1770074754518,11.55777308,104.47,104.42,10.72189645]
[1770074755414,2.93467308,104.46,104.42,10.72189645]